[Event "*** Titled Tuesday Blitz"]
[Site "Chess.com"]
[Date "2021.03.09"]
[Round "10"]
[White "anon481216"]
[Black "muchojogo"]
[Result "0-1"]
[WhiteElo "2516"]
[BlackElo "2406"]
[TimeControl "180+1"]
[EndTime "12:00:59 PST"]
[Termination "muchojogo won on time"]

1. d4 {[%clk 0:03:00.9]} 1... Nf6 {[%clk 0:02:59.7]} 2. c4 {[%clk 0:03:01]} 2...
c5 {[%clk 0:03:00.3]} 3. d5 {[%clk 0:03:00.8]} 3... b5 {[%clk 0:03:00.9]} 4.
cxb5 {[%clk 0:03:01]} 4... a6 {[%clk 0:03:01.6]} 5. bxa6 {[%clk 0:03:01.4]} 5...
g6 {[%clk 0:03:02.3]} 6. Nc3 {[%clk 0:03:01.7]} 6... Bg7 {[%clk 0:03:03]} 7. e4
{[%clk 0:03:00.6]} 7... O-O {[%clk 0:03:03.5]} 8. e5 {[%clk 0:02:55.9]} 8... Ne8
{[%clk 0:03:02.1]} 9. Nf3 {[%clk 0:02:56.3]} 9... d6 {[%clk 0:03:01.5]} 10. Bf4
{[%clk 0:02:52.4]} 10... dxe5 {[%clk 0:02:56.8]} 11. Nxe5 {[%clk 0:02:50.1]}
11... Bxa6 {[%clk 0:02:49.1]} 12. Bxa6 {[%clk 0:02:49]} 12... Rxa6 {[%clk
0:02:47.2]} 13. O-O {[%clk 0:02:48.4]} 13... Nc7 {[%clk 0:02:41.7]} 14. Re1
{[%clk 0:02:44.6]} 14... Rd6 {[%clk 0:02:33.1]} 15. Nc6 {[%clk 0:02:07.1]} 15...
Nxc6 {[%clk 0:02:27.6]} 16. Bxd6 {[%clk 0:02:06.9]} 16... Qxd6 {[%clk
0:02:28.5]} 17. dxc6 {[%clk 0:02:07]} 17... Qxc6 {[%clk 0:02:29.4]} 18. Rxe7
{[%clk 0:02:04.7]} 18... Ne6 {[%clk 0:02:27.6]} 19. Qd7 {[%clk 0:01:37.8]} 19...
Qb6 {[%clk 0:02:18.1]} 20. Qb7 {[%clk 0:01:37.6]} 20... Qa5 {[%clk 0:02:11.7]}
21. a4 {[%clk 0:01:12.4]} 21... Bxc3 {[%clk 0:02:07.1]} 22. bxc3 {[%clk
0:01:12.5]} 22... Qxc3 {[%clk 0:02:08]} 23. Rb1 {[%clk 0:01:07.3]} 23... Nd4
{[%clk 0:02:00.2]} 24. h3 {[%clk 0:01:06.7]} 24... Qa3 {[%clk 0:01:52.6]} 25.
Qd5 {[%clk 0:00:55.8]} 25... Qxa4 {[%clk 0:01:41.3]} 26. Rb8 {[%clk 0:00:52.1]}
26... Qd1+ {[%clk 0:01:36.9]} 27. Kh2 {[%clk 0:00:51]} 27... Nf3+ {[%clk
0:01:34.8]} 28. Qxf3 {[%clk 0:00:50.7]} 28... Qxf3 {[%clk 0:01:34.8]} 29. gxf3
{[%clk 0:00:40.2]} 29... Rxb8 {[%clk 0:01:34.4]} 30. Rc7 {[%clk 0:00:40.8]}
30... Rb5 {[%clk 0:01:34.6]} 31. Kg3 {[%clk 0:00:40.2]} 31... Kg7 {[%clk
0:01:35.1]} 32. Rc6 {[%clk 0:00:40.1]} 32... Ra5 {[%clk 0:01:31.3]} 33. f4
{[%clk 0:00:39]} 33... Ra3+ {[%clk 0:01:29.7]} 34. Kg2 {[%clk 0:00:37.6]} 34...
Rc3 {[%clk 0:01:29.6]} 35. Kh2 {[%clk 0:00:34.5]} 35... c4 {[%clk 0:01:26.1]}
36. Kg2 {[%clk 0:00:34.3]} 36... h5 {[%clk 0:01:26.4]} 37. h4 {[%clk 0:00:22.6]}
37... Kf8 {[%clk 0:01:25.2]} 38. Rc7 {[%clk 0:00:21.8]} 38... Rc2 {[%clk
0:01:22.9]} 39. Kg3 {[%clk 0:00:21.1]} 39... c3 {[%clk 0:01:21.9]} 40. Kf3
{[%clk 0:00:19.9]} 40... Rc1 {[%clk 0:01:22.1]} 41. Kg2 {[%clk 0:00:19.2]} 41...
c2 {[%clk 0:01:20.8]} 42. Kh2 {[%clk 0:00:18.1]} 42... Ke8 {[%clk 0:01:20.1]}
43. Kg2 {[%clk 0:00:16.5]} 43... Kd8 {[%clk 0:01:20.4]} 44. Rc3 {[%clk
0:00:14.7]} 44... Kd7 {[%clk 0:01:19.1]} 45. Rc5 {[%clk 0:00:13.1]} 45... Kd6
{[%clk 0:01:18.5]} 46. Rc8 {[%clk 0:00:12.1]} 46... Kd5 {[%clk 0:01:17.8]} 47.
Rc7 {[%clk 0:00:11.2]} 47... f5 {[%clk 0:01:17.7]} 48. Rc8 {[%clk 0:00:09.4]}
48... Ke4 {[%clk 0:01:15.8]} 49. Rc7 {[%clk 0:00:05.4]} 49... Kxf4 {[%clk
0:01:14.1]} 50. Rc4+ {[%clk 0:00:05.5]} 50... Ke5 {[%clk 0:01:13.9]} 51. Rc5+
{[%clk 0:00:05.6]} 51... Kd4 {[%clk 0:01:13.4]} 52. Rc8 {[%clk 0:00:05.5]} 52...
Kd3 {[%clk 0:01:13.4]} 53. Rd8+ {[%clk 0:00:05.3]} 53... Ke4 {[%clk 0:01:12.9]}
54. Rc8 {[%clk 0:00:05.2]} 54... Kf4 {[%clk 0:01:06.4]} 55. Rc4+ {[%clk
0:00:05]} 55... Ke5 {[%clk 0:01:07]} 56. Rc8 {[%clk 0:00:04.6]} 56... f4 {[%clk
0:01:00.6]} 57. Rc7 {[%clk 0:00:03]} 57... Kf5 {[%clk 0:00:58.3]} 58. f3 {[%clk
0:00:02.1]} 58... Ke5 {[%clk 0:00:58.2]} 59. Rc8 {[%clk 0:00:01.8]} 59... Kd4
{[%clk 0:00:58.2]} 60. Rc7 {[%clk 0:00:02.2]} 60... Ke3 {[%clk 0:00:50.2]} 61.
Re7+ {[%clk 0:00:02.3]} 61... Kd3 {[%clk 0:00:50.6]} 62. Rd7+ {[%clk 0:00:03]}
62... Kc3 {[%clk 0:00:50.6]} 63. Rc7+ {[%clk 0:00:03.4]} 63... Kb3 {[%clk
0:00:50.9]} 64. Rb7+ {[%clk 0:00:04]} 64... Kc4 {[%clk 0:00:51.2]} 65. Rc7+
{[%clk 0:00:04.2]} 65... Kd5 {[%clk 0:00:51.4]} 66. Rc8 {[%clk 0:00:04.5]} 66...
Ke5 {[%clk 0:00:51.7]} 67. Re8+ {[%clk 0:00:04.3]} 67... Kf5 {[%clk 0:00:50.7]}
68. Rc8 {[%clk 0:00:04.6]} 68... Ke6 {[%clk 0:00:29]} 69. Rc6+ {[%clk
0:00:03.7]} 69... Kd5 {[%clk 0:00:29]} 70. Rc8 {[%clk 0:00:03.7]} 70... Kd6
{[%clk 0:00:29.1]} 71. Rd8+ {[%clk 0:00:04]} 71... Kc5 {[%clk 0:00:28.9]} 72.
Rc8+ {[%clk 0:00:03.3]} 72... Kd4 {[%clk 0:00:29.3]} 73. Rd8+ {[%clk 0:00:03.1]}
73... Ke5 {[%clk 0:00:23.2]} 74. Re8+ {[%clk 0:00:02.9]} 74... Kf5 {[%clk
0:00:23.5]} 75. Rc8 {[%clk 0:00:02.9]} 75... Re1 {[%clk 0:00:20.5]} 76. Rxc2
{[%clk 0:00:02.7]} 76... Re5 {[%clk 0:00:21]} 77. Rd2 {[%clk 0:00:02.7]} 77...
g5 {[%clk 0:00:21]} 0-1

[Event "*** Titled Tuesday Blitz"]
[Site "Chess.com"]
[Date "2021.03.09"]
[Round "10"]
[White "frederiksvane"]
[Black "FormerProdigy"]
[Result "0-1"]
[WhiteElo "2667"]
[BlackElo "2849"]
[TimeControl "180+1"]
[EndTime "12:01:09 PST"]
[Termination "FormerProdigy won by resignation"]

1. e4 {[%clk 0:03:00.9]} 1... e5 {[%clk 0:03:00.1]} 2. Nf3 {[%clk 0:03:00.6]}
2... Nc6 {[%clk 0:03:00.1]} 3. Bb5 {[%clk 0:03:01.2]} 3... a6 {[%clk 0:02:59.9]}
4. Ba4 {[%clk 0:03:01.5]} 4... Nf6 {[%clk 0:03:00.1]} 5. O-O {[%clk 0:03:01.5]}
5... Be7 {[%clk 0:03:00.3]} 6. d3 {[%clk 0:03:01.9]} 6... d6 {[%clk 0:02:59.3]}
7. c3 {[%clk 0:03:00.9]} 7... O-O {[%clk 0:02:59.2]} 8. Re1 {[%clk 0:03:01]}
8... Re8 {[%clk 0:02:58.8]} 9. Nbd2 {[%clk 0:03:01]} 9... Bf8 {[%clk 0:02:53.2]}
10. Nf1 {[%clk 0:03:00.8]} 10... g6 {[%clk 0:02:46.5]} 11. Ng3 {[%clk
0:03:00.4]} 11... Bg7 {[%clk 0:02:44.8]} 12. h3 {[%clk 0:02:49.8]} 12... b5
{[%clk 0:02:39.5]} 13. Bb3 {[%clk 0:02:47.6]} 13... Na5 {[%clk 0:02:37.3]} 14.
Bc2 {[%clk 0:02:47.8]} 14... c5 {[%clk 0:02:36.7]} 15. a3 {[%clk 0:02:31.6]}
15... c4 {[%clk 0:02:15.1]} 16. d4 {[%clk 0:02:29.4]} 16... Bb7 {[%clk
0:02:02.6]} 17. Be3 {[%clk 0:01:58.5]} 17... exd4 {[%clk 0:01:47.6]} 18. Bxd4
{[%clk 0:01:57.6]} 18... Nc6 {[%clk 0:01:47.8]} 19. Be3 {[%clk 0:01:45]} 19...
d5 {[%clk 0:01:40]} 20. Bg5 {[%clk 0:01:36]} 20... dxe4 {[%clk 0:00:56.3]} 21.
Qxd8 {[%clk 0:01:09]} 21... Nxd8 {[%clk 0:00:55.6]} 22. Bxf6 {[%clk 0:01:03.2]}
22... Bxf6 {[%clk 0:00:56.5]} 23. Nxe4 {[%clk 0:01:03.7]} 23... Bxe4 {[%clk
0:00:51.5]} 24. Bxe4 {[%clk 0:01:04.6]} 24... Ra7 {[%clk 0:00:49.6]} 25. Bd5
{[%clk 0:00:49.1]} 25... Rxe1+ {[%clk 0:00:46.3]} 26. Rxe1 {[%clk 0:00:50]}
26... Rd7 {[%clk 0:00:46.2]} 27. Be4 {[%clk 0:00:42.7]} 27... Ne6 {[%clk
0:00:44.8]} 28. Kf1 {[%clk 0:00:35.3]} 28... Nc5 {[%clk 0:00:43.2]} 29. Bc2
{[%clk 0:00:35.6]} 29... Kf8 {[%clk 0:00:32]} 30. Ke2 {[%clk 0:00:34]} 30... Nd3
{[%clk 0:00:18.7]} 31. Bxd3 {[%clk 0:00:23.5]} 31... Rxd3 {[%clk 0:00:19.6]} 32.
Rd1 {[%clk 0:00:17.7]} 32... Rxd1 {[%clk 0:00:19.4]} 33. Kxd1 {[%clk 0:00:18.6]}
33... Ke7 {[%clk 0:00:19.7]} 34. Nd2 {[%clk 0:00:15.4]} 34... Ke6 {[%clk
0:00:19.6]} 35. Ne4 {[%clk 0:00:15.6]} 35... Be7 {[%clk 0:00:19.7]} 36. Ke2
{[%clk 0:00:15.6]} 36... f5 {[%clk 0:00:18.9]} 37. Nd2 {[%clk 0:00:15.8]} 37...
Bg5 {[%clk 0:00:17.7]} 38. Kd1 {[%clk 0:00:11.7]} 38... Kd5 {[%clk 0:00:14.1]}
39. Nf3 {[%clk 0:00:11.4]} 39... Bf6 {[%clk 0:00:12.3]} 40. Nd2 {[%clk
0:00:11.1]} 40... h5 {[%clk 0:00:09.7]} 41. Kc2 {[%clk 0:00:10.9]} 41... g5
{[%clk 0:00:09.4]} 42. Nf3 {[%clk 0:00:09.9]} 42... g4 {[%clk 0:00:09.2]} 43.
Nd2 {[%clk 0:00:10]} 43... Bg5 {[%clk 0:00:08.2]} 44. Nf1 {[%clk 0:00:09.1]}
44... Bf4 {[%clk 0:00:05.9]} 45. h4 {[%clk 0:00:04.2]} 45... Ke4 {[%clk
0:00:04.4]} 46. Nd2+ {[%clk 0:00:04.2]} 46... Bxd2 {[%clk 0:00:02.5]} 47. Kxd2
{[%clk 0:00:05.1]} 47... Kf4 {[%clk 0:00:02]} 48. Ke2 {[%clk 0:00:03.7]} 48...
Ke4 {[%clk 0:00:01.6]} 49. Kd2 {[%clk 0:00:02.7]} 49... f4 {[%clk 0:00:02]} 50.
Ke2 {[%clk 0:00:02.9]} 50... f3+ {[%clk 0:00:02.3]} 51. gxf3+ {[%clk 0:00:02.9]}
51... gxf3+ {[%clk 0:00:03.2]} 52. Kd2 {[%clk 0:00:03.2]} 52... Kf4 {[%clk
0:00:03.2]} 53. Ke1 {[%clk 0:00:02.3]} 53... Kg4 {[%clk 0:00:03.4]} 54. Kf1
{[%clk 0:00:02.9]} 54... Kxh4 {[%clk 0:00:03.7]} 55. Kg1 {[%clk 0:00:03.8]}
55... Kh3 {[%clk 0:00:02.6]} 56. Kh1 {[%clk 0:00:04.1]} 56... a5 {[%clk
0:00:02.3]} 57. Kg1 {[%clk 0:00:04.4]} 57... Kh4 {[%clk 0:00:02.6]} 58. Kh2
{[%clk 0:00:04.8]} 58... Kg4 {[%clk 0:00:03.1]} 59. Kh1 {[%clk 0:00:05.3]} 59...
Kf4 {[%clk 0:00:03.5]} 60. Kh2 {[%clk 0:00:06.1]} 60... Ke4 {[%clk 0:00:03.8]}
61. Kg3 {[%clk 0:00:06.8]} 61... Kd3 {[%clk 0:00:03.5]} 62. Kxf3 {[%clk
0:00:07.2]} 62... h4 {[%clk 0:00:02.9]} 63. Kg4 {[%clk 0:00:04.8]} 63... Ke4
{[%clk 0:00:03]} 64. Kxh4 {[%clk 0:00:03]} 64... Kf3 {[%clk 0:00:03.3]} 65. Kg5
{[%clk 0:00:03.7]} 65... Kxf2 {[%clk 0:00:03.9]} 66. Kf4 {[%clk 0:00:04.6]}
66... Ke2 {[%clk 0:00:03.8]} 67. Ke4 {[%clk 0:00:05.5]} 67... Kd2 {[%clk
0:00:02.4]} 68. Kd4 {[%clk 0:00:06.4]} 68... Kc2 {[%clk 0:00:02.7]} 69. Kc5
{[%clk 0:00:05.1]} 69... Kxb2 {[%clk 0:00:02.9]} 70. Kxb5 {[%clk 0:00:05.5]}
70... Kxc3 {[%clk 0:00:03.6]} 71. a4 {[%clk 0:00:05.5]} 71... Kb3 {[%clk
0:00:04]} 72. Kxa5 {[%clk 0:00:06.2]} 72... c3 {[%clk 0:00:04.8]} 73. Kb6 {[%clk
0:00:07.1]} 73... c2 {[%clk 0:00:05.7]} 74. a5 {[%clk 0:00:07.9]} 74... c1=Q
{[%clk 0:00:06.4]} 75. a6 {[%clk 0:00:08.8]} 75... Qe3+ {[%clk 0:00:06.3]} 76.
Kb7 {[%clk 0:00:09.2]} 76... Qe4+ {[%clk 0:00:06.7]} 77. Kb8 {[%clk 0:00:09.8]}
77... Qe5+ {[%clk 0:00:06.2]} 78. Kb7 {[%clk 0:00:10.2]} 78... Qb5+ {[%clk
0:00:06.7]} 79. Ka8 {[%clk 0:00:08.8]} 79... Qxa6+ {[%clk 0:00:06.4]} 0-1

[Event "*** Titled Tuesday Blitz"]
[Site "Chess.com"]
[Date "2021.03.09"]
[Round "10"]
[White "Piotrek1979"]
[Black "halldorgretar"]
[Result "1-0"]
[WhiteElo "2352"]
[BlackElo "2235"]
[TimeControl "180+1"]
[EndTime "12:01:11 PST"]
[Termination "Piotrek1979 won by checkmate"]

1. e4 {[%clk 0:03:00.9]} 1... c5 {[%clk 0:02:59.5]} 2. Nf3 {[%clk 0:02:59.9]}
2... Nc6 {[%clk 0:02:59.3]} 3. d4 {[%clk 0:02:59.5]} 3... cxd4 {[%clk
0:02:59.7]} 4. Nxd4 {[%clk 0:03:00.4]} 4... Nf6 {[%clk 0:02:59.9]} 5. Nc3 {[%clk
0:03:00.3]} 5... e5 {[%clk 0:03:00.4]} 6. Ndb5 {[%clk 0:03:00.6]} 6... d6 {[%clk
0:03:00.9]} 7. Bg5 {[%clk 0:02:59.1]} 7... a6 {[%clk 0:03:01]} 8. Na3 {[%clk
0:03:00]} 8... b5 {[%clk 0:03:01.4]} 9. Nd5 {[%clk 0:03:00.3]} 9... Be7 {[%clk
0:03:01.5]} 10. Bxf6 {[%clk 0:03:00.6]} 10... Bxf6 {[%clk 0:03:01.8]} 11. c3
{[%clk 0:03:01]} 11... O-O {[%clk 0:02:59.2]} 12. Nc2 {[%clk 0:02:56.2]} 12...
Bg5 {[%clk 0:02:59]} 13. a4 {[%clk 0:02:50.6]} 13... bxa4 {[%clk 0:02:58.1]} 14.
Rxa4 {[%clk 0:02:49.3]} 14... a5 {[%clk 0:02:58.4]} 15. Bc4 {[%clk 0:02:46.6]}
15... Rb8 {[%clk 0:02:54.2]} 16. b3 {[%clk 0:02:43.7]} 16... Kh8 {[%clk
0:02:53.6]} 17. h4 {[%clk 0:02:40.8]} 17... Bh6 {[%clk 0:02:51.1]} 18. Nce3
{[%clk 0:02:34.1]} 18... Bxe3 {[%clk 0:02:39.1]} 19. Nxe3 {[%clk 0:02:28.7]}
19... f5 {[%clk 0:02:36.6]} 20. exf5 {[%clk 0:02:28.1]} 20... Bxf5 {[%clk
0:02:35.4]} 21. O-O {[%clk 0:02:11.9]} 21... Qf6 {[%clk 0:01:43.6]} 22. Nxf5
{[%clk 0:01:59.4]} 22... Qxf5 {[%clk 0:01:42.8]} 23. Qxd6 {[%clk 0:01:59.9]}
23... Rf6 {[%clk 0:01:29.1]} 24. Qd2 {[%clk 0:01:36]} 24... Rd8 {[%clk
0:01:25.6]} 25. Qg5 {[%clk 0:01:31]} 25... Qc2 {[%clk 0:01:15]} 26. Bb5 {[%clk
0:01:22.4]} 26... Rg6 {[%clk 0:00:38.4]} 27. Qe3 {[%clk 0:01:07.8]} 27... Qxb3
{[%clk 0:00:23.3]} 28. Bxc6 {[%clk 0:01:02]} 28... Rxc6 {[%clk 0:00:23.1]} 29.
Rxa5 {[%clk 0:00:59.9]} 29... Qxc3 {[%clk 0:00:17.1]} 30. Qxe5 {[%clk 0:00:54]}
30... Qxe5 {[%clk 0:00:16.6]} 31. Rxe5 {[%clk 0:00:54.9]} 31... Rc4 {[%clk
0:00:15.9]} 32. g3 {[%clk 0:00:54.4]} 32... h6 {[%clk 0:00:15.1]} 33. h5 {[%clk
0:00:53]} 33... Rf8 {[%clk 0:00:14.9]} 34. Kg2 {[%clk 0:00:40.9]} 34... Rc2
{[%clk 0:00:14.6]} 35. g4 {[%clk 0:00:40.8]} 35... Rc3 {[%clk 0:00:13.3]} 36. f3
{[%clk 0:00:39.8]} 36... Kh7 {[%clk 0:00:10.8]} 37. Re6 {[%clk 0:00:38]} 37...
Rf7 {[%clk 0:00:10.5]} 38. Kg3 {[%clk 0:00:37.6]} 38... Rd3 {[%clk 0:00:10.1]}
39. Rf2 {[%clk 0:00:34.5]} 39... Rc3 {[%clk 0:00:09.9]} 40. Rd6 {[%clk
0:00:32.4]} 40... Rb3 {[%clk 0:00:09.4]} 41. Rd1 {[%clk 0:00:25.1]} 41... Rc3
{[%clk 0:00:09.1]} 42. Rdf1 {[%clk 0:00:24.7]} 42... g6 {[%clk 0:00:09.2]} 43.
hxg6+ {[%clk 0:00:23.7]} 43... Kxg6 {[%clk 0:00:07.7]} 44. Rd1 {[%clk
0:00:23.7]} 44... Rb3 {[%clk 0:00:06.9]} 45. Rd6+ {[%clk 0:00:23.3]} 45... Kg7
{[%clk 0:00:07.3]} 46. Kg2 {[%clk 0:00:20.9]} 46... Rf4 {[%clk 0:00:06.8]} 47.
Re6 {[%clk 0:00:17.4]} 47... Rf7 {[%clk 0:00:06.4]} 48. f4 {[%clk 0:00:15.6]}
48... Rf6 {[%clk 0:00:06.5]} 49. Re7+ {[%clk 0:00:12]} 49... Rf7 {[%clk
0:00:06.8]} 50. Rxf7+ {[%clk 0:00:11.2]} 50... Kxf7 {[%clk 0:00:06]} 51. Rf3
{[%clk 0:00:12.1]} 51... Rb2+ {[%clk 0:00:04.2]} 52. Kg3 {[%clk 0:00:13]} 52...
Rb1 {[%clk 0:00:03.6]} 53. Rc3 {[%clk 0:00:13]} 53... Rg1+ {[%clk 0:00:03.9]}
54. Kh3 {[%clk 0:00:12.5]} 54... Rh1+ {[%clk 0:00:03.8]} 55. Kg2 {[%clk
0:00:12.6]} 55... Re1 {[%clk 0:00:03.4]} 56. Rc6 {[%clk 0:00:12.8]} 56... Re7
{[%clk 0:00:02.8]} 57. Rxh6 {[%clk 0:00:10.4]} 57... Kg7 {[%clk 0:00:02.7]} 58.
g5 {[%clk 0:00:10.3]} 58... Re3 {[%clk 0:00:03]} 59. Rf6 {[%clk 0:00:09.3]}
59... Ra3 {[%clk 0:00:03.3]} 60. Kf2 {[%clk 0:00:09.2]} 60... Rb3 {[%clk
0:00:03.7]} 61. Re6 {[%clk 0:00:09]} 61... Rc3 {[%clk 0:00:03.9]} 62. Re3 {[%clk
0:00:08.5]} 62... Rc4 {[%clk 0:00:04]} 63. Kf3 {[%clk 0:00:08.6]} 63... Rc1
{[%clk 0:00:04.6]} 64. Kg4 {[%clk 0:00:08.7]} 64... Rg1+ {[%clk 0:00:04.5]} 65.
Kf5 {[%clk 0:00:07.9]} 65... Rb1 {[%clk 0:00:05.1]} 66. Re7+ {[%clk 0:00:07.8]}
66... Kf8 {[%clk 0:00:03.7]} 67. Ra7 {[%clk 0:00:08.7]} 67... Rb5+ {[%clk
0:00:03.4]} 68. Kg4 {[%clk 0:00:08.6]} 68... Rb4 {[%clk 0:00:03.1]} 69. g6
{[%clk 0:00:08.6]} 69... Kg8 {[%clk 0:00:02.2]} 70. Kg5 {[%clk 0:00:08.1]} 70...
Rb5+ {[%clk 0:00:01.7]} 71. f5 {[%clk 0:00:08.1]} 71... Rb1 {[%clk 0:00:02.2]}
72. Ra8+ {[%clk 0:00:07.2]} 72... Kg7 {[%clk 0:00:01.1]} 73. f6# {[%clk
0:00:06.3]} 1-0

[Event "*** Titled Tuesday Blitz"]
[Site "Chess.com"]
[Date "2021.03.09"]
[Round "10"]
[White "jovencata"]
[Black "stepakyedael"]
[Result "1/2-1/2"]
[WhiteElo "2186"]
[BlackElo "2282"]
[TimeControl "180+1"]
[EndTime "12:01:16 PST"]
[Termination "Game drawn by repetition"]

1. Nf3 {[%clk 0:03:00.9]} 1... Nf6 {[%clk 0:02:59.9]} 2. g3 {[%clk 0:02:58.7]}
2... g6 {[%clk 0:02:59.9]} 3. Bg2 {[%clk 0:02:59.1]} 3... Bg7 {[%clk 0:03:00.4]}
4. O-O {[%clk 0:02:59.7]} 4... O-O {[%clk 0:03:00.9]} 5. d4 {[%clk 0:03:00.2]}
5... d6 {[%clk 0:03:01.1]} 6. c3 {[%clk 0:03:00]} 6... Nbd7 {[%clk 0:02:59.1]}
7. Nbd2 {[%clk 0:02:55.4]} 7... e5 {[%clk 0:02:58.6]} 8. e4 {[%clk 0:02:55.4]}
8... Qe7 {[%clk 0:02:57.7]} 9. Re1 {[%clk 0:02:55.1]} 9... c6 {[%clk 0:02:57.2]}
10. dxe5 {[%clk 0:02:52.9]} 10... Nxe5 {[%clk 0:02:53.8]} 11. Nxe5 {[%clk
0:02:51.9]} 11... dxe5 {[%clk 0:02:53.9]} 12. Nc4 {[%clk 0:02:49.7]} 12... Bg4
{[%clk 0:02:47.5]} 13. Qc2 {[%clk 0:02:42.2]} 13... Nd7 {[%clk 0:02:40.7]} 14.
b4 {[%clk 0:02:35.3]} 14... Be6 {[%clk 0:02:39.5]} 15. Bf1 {[%clk 0:02:34.2]}
15... f5 {[%clk 0:02:31.2]} 16. a4 {[%clk 0:02:25.4]} 16... f4 {[%clk
0:02:30.1]} 17. Ba3 {[%clk 0:02:19.8]} 17... c5 {[%clk 0:02:19.6]} 18. b5 {[%clk
0:01:58.7]} 18... b6 {[%clk 0:02:17.2]} 19. Rad1 {[%clk 0:01:57.5]} 19... Rad8
{[%clk 0:02:09.8]} 20. Rd2 {[%clk 0:01:49.7]} 20... Nb8 {[%clk 0:02:01.9]} 21.
Red1 {[%clk 0:01:48.2]} 21... Rxd2 {[%clk 0:02:00.7]} 22. Qxd2 {[%clk
0:01:46.8]} 22... Qg5 {[%clk 0:01:50.4]} 23. Bc1 {[%clk 0:01:38.8]} 23... h5
{[%clk 0:01:46.3]} 24. Qd6 {[%clk 0:01:38]} 24... Re8 {[%clk 0:01:24.9]} 25. a5
{[%clk 0:01:25.6]} 25... h4 {[%clk 0:01:18.8]} 26. axb6 {[%clk 0:01:24.6]} 26...
axb6 {[%clk 0:01:17.7]} 27. Qxb6 {[%clk 0:01:18.3]} 27... hxg3 {[%clk
0:01:14.6]} 28. hxg3 {[%clk 0:01:17.8]} 28... Qg4 {[%clk 0:01:10.2]} 29. Rd8
{[%clk 0:01:14.5]} 29... Rxd8 {[%clk 0:00:51.9]} 30. Qxd8+ {[%clk 0:01:15.4]}
30... Kh7 {[%clk 0:00:51.9]} 31. Qh4+ {[%clk 0:00:53.8]} 31... Qxh4 {[%clk
0:00:51]} 32. gxh4 {[%clk 0:00:54.7]} 32... Bf6 {[%clk 0:00:43.1]} 33. Na5
{[%clk 0:00:53.7]} 33... Nd7 {[%clk 0:00:34.6]} 34. Ba3 {[%clk 0:00:46.3]} 34...
Bxh4 {[%clk 0:00:32.4]} 35. b6 {[%clk 0:00:46.5]} 35... Nxb6 {[%clk 0:00:30.4]}
36. Bxc5 {[%clk 0:00:45.8]} 36... Nd7 {[%clk 0:00:28.5]} 37. Bd6 {[%clk
0:00:45.1]} 37... Kg8 {[%clk 0:00:23.1]} 38. c4 {[%clk 0:00:42]} 38... Kf7
{[%clk 0:00:23]} 39. c5 {[%clk 0:00:42.4]} 39... Be7 {[%clk 0:00:22.9]} 40. Nc6
{[%clk 0:00:24]} 40... Bxd6 {[%clk 0:00:22.3]} 41. cxd6 {[%clk 0:00:24.2]} 41...
Ke8 {[%clk 0:00:19.6]} 42. Bb5 {[%clk 0:00:23]} 42... Kf7 {[%clk 0:00:17.7]} 43.
Nd8+ {[%clk 0:00:22.2]} 43... Kf6 {[%clk 0:00:17.2]} 44. Nb7 {[%clk 0:00:15.3]}
44... Nb6 {[%clk 0:00:13.9]} 45. Nc5 {[%clk 0:00:13.1]} 45... Bc8 {[%clk
0:00:13.6]} 46. d7 {[%clk 0:00:12.7]} 46... Nxd7 {[%clk 0:00:12.3]} 47. Bxd7
{[%clk 0:00:12.5]} 47... Bxd7 {[%clk 0:00:11.3]} 48. Nxd7+ {[%clk 0:00:13.4]}
48... Ke6 {[%clk 0:00:11.3]} 49. Nc5+ {[%clk 0:00:13.6]} 49... Kd6 {[%clk
0:00:11.3]} 50. Nd3 {[%clk 0:00:13.9]} 50... g5 {[%clk 0:00:11.5]} 51. Kg2
{[%clk 0:00:14.3]} 51... g4 {[%clk 0:00:11.5]} 52. f3 {[%clk 0:00:14]} 52... g3
{[%clk 0:00:11.6]} 53. Kh3 {[%clk 0:00:13.3]} 53... Ke6 {[%clk 0:00:11.8]} 54.
Kg2 {[%clk 0:00:13.4]} 54... Kf6 {[%clk 0:00:11.9]} 55. Nc1 {[%clk 0:00:12.5]}
55... Ke6 {[%clk 0:00:11.2]} 56. Ne2 {[%clk 0:00:12.6]} 56... Kf6 {[%clk
0:00:10.5]} 57. Nxg3 {[%clk 0:00:13.5]} 57... fxg3 {[%clk 0:00:09.9]} 58. Kxg3
{[%clk 0:00:14.4]} 58... Kg5 {[%clk 0:00:08.8]} 59. f4+ {[%clk 0:00:14.5]} 59...
exf4+ {[%clk 0:00:08.4]} 60. Kf3 {[%clk 0:00:15.4]} 60... Kg6 {[%clk 0:00:07.8]}
61. Kxf4 {[%clk 0:00:16.3]} 61... Kf6 {[%clk 0:00:08]} 62. e5+ {[%clk
0:00:15.8]} 62... Ke6 {[%clk 0:00:08.3]} 63. Ke4 {[%clk 0:00:16.7]} 63... Ke7
{[%clk 0:00:08.5]} 64. Kf5 {[%clk 0:00:17.6]} 64... Kf7 {[%clk 0:00:08.6]} 65.
Kg4 {[%clk 0:00:17.3]} 65... Ke6 {[%clk 0:00:08.4]} 66. Kf4 {[%clk 0:00:18.2]}
66... Ke7 {[%clk 0:00:08.1]} 67. Ke4 {[%clk 0:00:18.4]} 67... Ke6 {[%clk
0:00:08.3]} 68. Kd4 {[%clk 0:00:18.4]} 68... Ke7 {[%clk 0:00:08.5]} 69. Kd5
{[%clk 0:00:19.2]} 69... Kd7 {[%clk 0:00:08.7]} 70. e6+ {[%clk 0:00:20.1]} 70...
Ke7 {[%clk 0:00:08.7]} 71. Ke5 {[%clk 0:00:21]} 71... Ke8 {[%clk 0:00:08.9]} 72.
Kf4 {[%clk 0:00:18.5]} 72... Ke7 {[%clk 0:00:08.8]} 73. Kf5 {[%clk 0:00:18.9]}
73... Ke8 {[%clk 0:00:08.9]} 74. Ke5 {[%clk 0:00:18.1]} 74... Ke7 {[%clk
0:00:09.1]} 75. Kd5 {[%clk 0:00:18.6]} 75... Ke8 {[%clk 0:00:09]} 76. Kd6 {[%clk
0:00:19.5]} 76... Kd8 {[%clk 0:00:09.1]} 77. Ke5 {[%clk 0:00:17.5]} 77... Ke7
{[%clk 0:00:08.9]} 78. Kf5 {[%clk 0:00:17.9]} 78... Ke8 {[%clk 0:00:09]} 79. Kf4
{[%clk 0:00:16.3]} 79... Ke7 {[%clk 0:00:09]} 80. Ke5 {[%clk 0:00:16.8]} 80...
Ke8 {[%clk 0:00:09]} 81. Kd6 {[%clk 0:00:16.9]} 81... Kd8 {[%clk 0:00:09]} 82.
Kd5 {[%clk 0:00:17.8]} 82... Ke7 {[%clk 0:00:06.9]} 83. Ke5 {[%clk 0:00:18.7]}
1/2-1/2